Cogmind - Beta 11 @@@ ROGUE MODE // 2022.03.29 @ 13:26:31 Player: albenzo Result: Destroyed by Y-54 Guardian with Gatling Laser Performance ------------- Evolutions (3) 1500 Regions Visited (6) 1200 Robots Destroyed (75) 375 Value Destroyed (2527) 2527 Prototype IDs (2) 40 Alien Tech Used (0) 0 Bonus (1217) 1217 TOTAL SCORE: 6859 Bonus ------- High Alert Combat Kills 517 Entered Garrisons 200 Entered DSFs 500 Cogmind --------- Core Integrity 0/700 Matter 290/300 Energy 87/100 System Corruption 1% Temperature Cool (18) Movement Rolling (115) Ox1 Location -7/Garrison Parts ------- > --- POWER (1) -------- (None) > --- PROPULSION (4) --- Armored Huge Wheel > --- UTILITY (5) ------ High-capacity Storage Unit > --- WEAPON (3) ------- (None) > --- INVENTORY (20) --- Huge Storage Unit Compact Matter Pod (8) Compact Matter Pod (0) System Shield System Shield Rocket Launcher Great Maul Katana Peak State ------------ > --- POWER ------------ Improved Ion Engine > --- PROPULSION ------- Armored Huge Wheel Armored Huge Wheel > --- UTILITY ---------- High-capacity Storage Unit Compact Matter Pod Seismic Detector Improved Targeting Computer Recoil Stabilizer > --- WEAPON ----------- Heavy Assault Rifle High-powered Shotgun Assault Cannon > --- INVENTORY -------- Aluminum Leg Aluminum Leg Armored Huge Wheel Armored Huge Wheel Armored Huge Wheel Armored Huge Wheel Huge Storage Unit Compact Matter Pod Compact Matter Pod Kinecellerator System Shield System Shield Tractor Beam Rocket Launcher Great Maul Katana [Rating: 42] Favorites ----------- Power Cooled Ion Engine Engine Cooled Ion Engine Propulsion Armored Wheel Treads Light Treads Leg Aluminum Leg Wheel Armored Wheel Utility Seismic Detector Device Seismic Detector Storage High-capacity Storage Unit Processor Improved Targeting Computer Protection Improved Light Armor Plating Weapon Heavy Assault Rifle Energy Gun Small Laser Ballistic Gun Heavy Assault Rifle Ballistic Cannon Improved Light Cannon Launcher Rocket Launcher Build | -11 -10 -9 -8 -7 -7 -7 ------- Run | Scr Mat Mat Mat Fac DSF Gar Slots Evolved 6 | . . 2 2 2 . . Power . | . . . . . . . Propulsion 2 | . . 1 1 . . . Utility 3 | . . 1 . 2 . . Weapon 1 | . . . 1 . . . Parts Attached 83 | 6 4 44 10 2 6 11 Power 9 | 1 . 6 1 . 1 . Engine 9 | 1 . 6 1 . 1 . Core . | . . . . . . . Reactor . | . . . . . . . Propulsion 27 | 2 1 13 5 . 2 4 Treads 6 | . . 1 5 . . . Leg 7 | 2 1 4 . . . . Wheel 14 | . . 8 . . 2 4 Hover . | . . . . . . . Flight . | . . . . . . . Utility 26 | 1 3 14 1 2 2 3 Device 15 | . 3 9 . 1 . 2 Storage 3 | 1 . 1 . . . 1 Processor 1 | . . . . 1 . . Hackware . | . . . . . . . Protection 7 | . . 4 1 . 2 . Artifact . | . . . . . . . Weapon 21 | 2 . 11 3 . 1 4 Energy Gun 3 | 2 . . . . . 1 Energy Cannon . | . . . . . . . Ballistic Gun 15 | . . 11 2 . . 2 Ballistic Cannon 2 | . . . 1 . 1 . Launcher 1 | . . . . . . 1 Special Weapon . | . . . . . . . Impact Weapon . | . . . . . . . Slashing Weapon . | . . . . . . . Piercing Weapon . | . . . . . . . Special Melee Weapon . | . . . . . . . Unidentified Prototypes . | . . . . . . . Parts Lost 33 | . . 10 1 . 4 18 Power 3 | . . 1 . . 1 1 Propulsion 9 | . . 4 . . . 5 Utility 11 | . . 2 . . 2 7 Weapon 10 | . . 3 1 . 1 5 Highest Loss Streak 9 | . . 3 1 . 4 9 To Critical Strikes 1 | . . . . . . 1 Average Slot Usage (%) 95 | . 98 99 99 100 82 68 Engine 9 | . 14 11 9 7 5 4 Treads 7 | . . . 17 30 2 . Leg 4 | . 28 6 . . . . Wheel 17 | . . 25 18 . 13 13 Device 13 | . 12 16 9 15 15 11 Storage 10 | . 14 11 9 7 7 11 Processor 1 | . . . . 7 7 7 Protection 5 | . . 5 8 7 6 2 Energy Gun 3 | . 28 2 . . . 1 Ballistic Gun 16 | . . 19 20 15 15 10 Ballistic Cannon 2 | . . . 6 7 6 4 Naked Turns . | . . . . . . . Heaviest Build 67 | 11 12 61 65 63 67 67 Greatest Support 80 | 20 26 36 80 80 80 56 Greatest Overweight (x) 5 | . . 5 1 . 2 1 Average Overweight (x) . | . . . . . . . Largest Inventory Capacity 20 | 8 8 20 20 20 20 20 Average Capacity 17 | 6 8 16 20 20 20 20 Most Carried 20 | 6 8 20 20 19 20 20 Average Carried 16 | 3 7 16 19 18 19 17 Final Capacity 20 | 8 8 20 20 20 20 20 Final Carried 20 | 6 8 20 20 19 20 8 Class Distribution -------------------- 57% | Mutant 14% | Tank 11% | Scavenger-Gunner 7% | Scavenger-Tank 6% | Gunner 3% | Scavenger-Mutant Dominant Class ---------------- Mutant | -10/Materials Mutant | -9/Materials Tank | -8/Materials Scavenger-Gunner | -7/Factory Mutant | -7/DSF Mutant | -7/Garrison Resources | -11 -10 -9 -8 -7 -7 -7 ----------- Run | Scr Mat Mat Mat Fac DSF Gar Matter Collected 2545 | 238 52 1644 496 . . 115 Remotely . | . . . . . . . Salvage Created 2518 | . 116 1613 620 . 50 119 Parts 161 | . 9 104 32 . 5 11 Haulers Intercepted . | . . . . . . . Recyclers Shooed 3 | . . 3 . . . . Parts Field Recycled . | . . . . . . . Retrieved Matter . | . . . . . . . Parts Self-Destructed . | . . . . . . . Prevented . | . . . . . . . Kills | -11 -10 -9 -8 -7 -7 -7 ------- Run | Scr Mat Mat Mat Fac DSF Gar Combat Hostiles Destroyed 71 | . 4 42 16 . 2 7 Guns 60 | . 3 42 11 . 1 3 Cannons 7 | . . . 5 . 1 1 AOE 3 | . . . . . . 3 Classes Destroyed 12 | . 3 6 1 . 1 1 Worker 1 | . . 1 . . . . Builder 1 | . 1 . . . . . Recycler 1 | . . 1 . . . . Watcher 1 | . . 1 . . . . Swarmer 22 | . 2 13 3 . . 4 Cutter 2 | . . . . . 2 . Grunt 34 | . 2 20 10 . . 2 Brawler 1 | . . 1 . . . . Duelist 1 | . . 1 . . . . Sentry 9 | . . 7 2 . . . Hunter 1 | . . . 1 . . . Programmer 1 | . . . . . . 1 Best Kill Streak 5 | . 3 5 4 . 2 4 Combat Bots Only 4 | . 2 4 4 . 2 4 Max Kills in Single Turn 3 | . 1 2 1 . 1 3 Gunslinging 1 | . . 1 . . . . Exploded 3 | . . . . . . 3 Melee . | . . . . . . . Uniques/NPCs Destroyed . | . . . . . . . Combat | -11 -10 -9 -8 -7 -7 -7 -------- Run | Scr Mat Mat Mat Fac DSF Gar Damage Taken 6449 | . 162 2134 738 . 713 2702 Core 1101 | . 37 296 61 . 14 693 Absorbed by Shields . | . . . . . . . Regen/Repaired (Parts) 93 | . . 11 82 . . . Core Remaining (%) 74 | 100 85 26 88 . . . Volleys Fired 210 | . 10 141 41 . 5 13 Largest 3 | . 2 2 3 . 3 3 Hottest 102 | . 90 90 85 . 85 102 Shots Fired 477 | . 20 282 123 . 13 39 Gun 438 | . 20 282 101 . 10 25 Cannon 37 | . . . 22 . 3 12 Launcher 2 | . . . . . . 2 Special . | . . . . . . . Kinetic 440 | . . 268 123 . 13 36 Thermal 34 | . 20 14 . . . . Explosive 2 | . . . . . . 2 Electromagnetic 1 | . . . . . . 1 Robot Hit Streak 25 | . 14 25 10 . 2 5 Robot Miss Streak 5 | . 1 5 3 . 3 2 Penetration Max . | . . . . . . . Secondary Targets 6 | . . 5 . . 1 . Max Gunslinging Chain 1 | . . 1 . . 1 . Shots Hit Robots 309 | . 15 191 76 . 7 20 Core Hits 122 | . 7 69 31 . 4 11 Critical Kills 2 | . . 2 . . . . Critical Parts Destroyed 1 | . . 1 . . . . Critical Strikes 7 | . 2 4 1 . . . Burn 3 | . 2 1 . . . . Destroy 3 | . . 3 . . . . Blast 1 | . . . 1 . . . Melee Attacks . | . . . . . . . Impact . | . . . . . . . Slashing . | . . . . . . . Piercing . | . . . . . . . Sneak Attacks . | . . . . . . . Combat Hostiles . | . . . . . . . Follow-up Attacks . | . . . . . . . Damage Inflicted 5226 | . 174 2894 1220 . 133 805 Guns 4318 | . 174 2894 955 . 93 202 Cannons 473 | . . . 265 . 40 168 Explosions 387 | . . . . . . 387 Melee . | . . . . . . . Ramming 48 | . . . . . . 48 Kinetic 4496 | . . 2773 1220 . 133 370 Thermal 295 | . 174 121 . . . . Explosive 387 | . . . . . . 387 Electromagnetic . | . . . . . . . Impact . | . . . . . . . Slashing . | . . . . . . . Piercing . | . . . . . . . Highest Corruption 1 | . . . . . . 1 Average Corruption 1 | . . . . . . 1 Corruption Purged . | . . . . . . . Corruption Blocked . | . . . . . . . Effects 2 | . . . . . . 2 Energy Discharges 1 | . . . . . . 1 Misfires 1 | . . . . . . 1 Overload Shots . | . . . . . . . Overflow Damage 79 | . . . 15 . . 64 Projectiles 35 | . . . 15 . . 20 Explosions 44 | . . . . . . 44 Melee . | . . . . . . . Knockbacks 5 | . . . 2 . . 3 Impact . | . . . . . . . Kinetic 4 | . . . 1 . . 3 Secondary 1 | . . . 1 . . . Self-Inflicted Damage 45 | . . . . . . 45 Shots 2 | . . . . . . 2 Rammed 10 | . . . . . . 10 Targets Rammed 10 | . . . . . . 10 Kicked . | . . . . . . . Crushed . | . . . . . . . Highest Temperature 273 | . 273 54 45 . . 45 Average Temperature 29 | . 140 15 13 . . 16 Received Heat Transfer 1626 | . 78 696 288 . 171 393 Siege Activations . | . . . . . . . Robots Corrupted . | . . . . . . . Combat Hostiles . | . . . . . . . Parts Fried . | . . . . . . . Impact Corruptions . | . . . . . . . Robots Melted 1 | . 1 . . . . . Combat Hostiles 1 | . 1 . . . . . Parts Melted 2 | . 1 1 . . . . Heat Transferred 1015 | . 619 396 . . . . Parts Sabotaged . | . . . . . . . Parts Stolen . | . . . . . . . Parts Stripped . | . . . . . . . Power Chain Reactions . | . . . . . . . Missiles Intercepted . | . . . . . . . Alert | -11 -10 -9 -8 -7 -7 -7 ------- Run | Scr Mat Mat Mat Fac DSF Gar Peak Influence 1157 | . 160 1157 530 109 55 300 Initial 366 | . . 67 366 109 . 37 Average 408 | . 86 655 329 97 20 169 Maximum Alert Level 4 | . . 4 2 . . 1 Low Security (%) 44 | 100 100 29 14 100 100 58 Level 1 22 | . . 8 67 . . 41 Level 2 4 | . . 2 17 . . . Level 3 21 | . . 46 . . . . Level 4 6 | . . 13 . . . . Level 5 . | . . . . . . . High Security . | . . . . . . . Max Security . | . . . . . . . Squads Dispatched 9 | . . 4 2 1 2 . Investigation 2 | . . . 1 1 . . Extermination . | . . . . . . . Reinforcement 7 | . . 4 1 . 2 . Assault . | . . . . . . . Garrison . | . . . . . . . Intercept . | . . . . . . . Searches Triggered 3 | . . 3 . . . . Construction Impeded 1 | . . 1 . . . . Haulers Reinforced . | . . . . . . . Active Scanning Responses . | . . . . . . . Cargo Convoy Interrupts . | . . . . . . . Stealth | -11 -10 -9 -8 -7 -7 -7 --------- Run | Scr Mat Mat Mat Fac DSF Gar Distress Signals 7 | . 1 6 . . . . Communications Jammed . | . . . . . . . Distress Signals . | . . . . . . . Times Spotted 118 | . 9 61 25 . 6 17 Peak Tracking Total 9 | . 4 6 7 . 4 9 Tactical Retreats 12 | . 1 7 2 . 1 1 Traps | -11 -10 -9 -8 -7 -7 -7 ------- Run | Scr Mat Mat Mat Fac DSF Gar Traps Triggered 5 | . . 1 2 . 1 1 Indirectly . | . . . . . . . Trap Hack Attempts . | . . . . . . . Triggered . | . . . . . . . Disarmed . | . . . . . . . Reprogrammed . | . . . . . . . Reused . | . . . . . . . Traps Extracted . | . . . . . . . Installed . | . . . . . . . Triggered . | . . . . . . . Machines | -11 -10 -9 -8 -7 -7 -7 ---------- Run | Scr Mat Mat Mat Fac DSF Gar Machines Disabled 3 | . . . 1 . 1 1 Max in Single Turn 1 | . . . 1 . 1 1 Garrison Relay 1 | . . . . . . 1 Machines Sabotaged . | . . . . . . . Garrisons Compromised . | . . . . . . . Overloaded Fab Kills . | . . . . . . . Hacking | -11 -10 -9 -8 -7 -7 -7 --------- Run | Scr Mat Mat Mat Fac DSF Gar Machines Accessed 21 | . 3 10 5 3 . . Terminals 16 | . 3 6 4 3 . . Fabricators . | . . . . . . . Repair Stations 2 | . . 1 1 . . . Recycling Units 2 | . . 2 . . . . Scanalyzers 1 | . . 1 . . . . Garrison Access . | . . . . . . . Total Hacks 53 | . 4 31 13 5 . . Successful 29 | . 3 18 7 1 . . Failed 24 | . 1 13 6 4 . . Catastrophic 3 | . . 2 . 1 . . Database Lockouts . | . . . . . . . Manual 27 | . 2 17 6 2 . . Terminals 42 | . 4 22 11 5 . . Fabricators . | . . . . . . . Repair Stations 5 | . . 3 2 . . . Recycling Units 2 | . . 2 . . . . Scanalyzers 4 | . . 4 . . . . Garrison Access . | . . . . . . . Terminal Hacks 19 | . 3 10 5 1 . . Record 1 | . . 1 . . . . Robot Analysis 1 | . . 1 . . . . Prototype ID Bank 1 | . . 1 . . . . Open DSF 1 | . . . . 1 . . Alert Level 7 | . 1 4 2 . . . Unreport Threat 4 | . . 2 2 . . . Locate Traps 1 | . . . 1 . . . Maintenance Status 1 | . 1 . . . . . Recall Investigation 1 | . . 1 . . . . Zone Layout 1 | . 1 . . . . . Fabricator Hacks . | . . . . . . . Repair Station Hacks 4 | . . 2 2 . . . Scan Component 2 | . . 1 1 . . . Repair 2 | . . 1 1 . . . Recycling Unit Hacks 2 | . . 2 . . . . Report Inventory 2 | . . 2 . . . . Scanalyzer 4 | . . 4 . . . . Insert Component 2 | . . 2 . . . . Analyze 2 | . . 2 . . . . Garrison Access Hacks . | . . . . . . . Unauthorized Hacks . | . . . . . . . Terminals . | . . . . . . . Fabricators . | . . . . . . . Repair Stations . | . . . . . . . Recycling Units . | . . . . . . . Scanalyzers . | . . . . . . . Garrison Access . | . . . . . . . Data Cores Recovered . | . . . . . . . Used . | . . . . . . . Hacking Detections 16 | . 1 8 5 2 . . Full Trace Events 1 | . . . . 1 . . Feedback Events . | . . . . . . . Feedback Blocked . | . . . . . . . Robot Schematics Acquired . | . . . . . . . Robots Built . | . . . . . . . Authchips . | . . . . . . . Time . | . . . . . . . Total Robot Build Rating . | . . . . . . . Part Schematics Acquired 2 | . . 2 . . . . Parts Built . | . . . . . . . Authchips . | . . . . . . . Time . | . . . . . . . Total Part Build Rating . | . . . . . . . Parts Repaired 2 | . . 1 1 . . . Time 58 | . . 26 32 . . . Parts Recycled . | . . . . . . . Recycled Matter . | . . . . . . . Retrieved Matter . | . . . . . . . Retrieved Components . | . . . . . . . Parts Scanalyzed 2 | . . 2 . . . . Part Schematics Acquired 2 | . . 2 . . . . Parts Damaged . | . . . . . . . Bothacking | -11 -10 -9 -8 -7 -7 -7 ------------ Run | Scr Mat Mat Mat Fac DSF Gar Used RIF Installer . | . . . . . . . Robots Hacked . | . . . . . . . Non-combat . | . . . . . . . Combat . | . . . . . . . Robot Hacks Applied . | . . . . . . . Relay Couplers Released 3 | . . . . . . 3 Machine Destruction 3 | . . . . . . 3 Fabnet Peak Effective % . | . . . . . . . Robots Rewired . | . . . . . . . Allies Hacked . | . . . . . . . Hacks Repelled . | . . . . . . . Allies | -11 -10 -9 -8 -7 -7 -7 -------- Run | Scr Mat Mat Mat Fac DSF Gar Total Allies . | . . . . . . . Largest Group . | . . . . . . . Highest-Rated Group . | . . . . . . . Highest-Rated Ally . | . . . . . . . Total Orders . | . . . . . . . Ally Attacks . | . . . . . . . Total Damage . | . . . . . . . Kills . | . . . . . . . Allies Corrupted . | . . . . . . . Allies Melted . | . . . . . . . Intel | -11 -10 -9 -8 -7 -7 -7 ------- Run | Scr Mat Mat Mat Fac DSF Gar Robot Analysis Total 1 | . . 1 . . . . Derelict Logs Recovered . | . . . . . . . Drone Launches . | . . . . . . . Drone Recoveries . | . . . . . . . Exploration | -11 -10 -9 -8 -7 -7 -7 ------------- Run | Scr Mat Mat Mat Fac DSF Gar Turns Passed 4008 | 67 242 1858 859 446 125 411 Spaces Moved 2219 | 47 154 989 470 216 69 274 Core 5 | 5 . . . . . . Treads 360 | . . . 139 216 5 . Legs 400 | 42 154 204 . . . . Wheels 1454 | . . 785 331 . 64 274 Hover . | . . . . . . . Flight . | . . . . . . . Fastest Speed 50 | 50 120 90 105 162 100 100 Average Speed 118 | 112 120 108 122 162 117 112 Slowest Speed 245 | 120 120 165 245 162 162 115 Overloaded Moves . | . . . . . . . Propulsion Burnouts . | . . . . . . . Robots Hopped . | . . . . . . . Cave-ins Triggered . | . . . . . . . Exploration Rate (%) 38 | 3 36 80 42 8 60 40 Regions Visited 6 Branch Regions . Pre-discovered Areas . | . . . . . . . Known Exits Taken 1 | . . . . 1 . . Unknown Exits Taken 4 | 1 1 1 1 . . . Scrap Searched . | . . . . . . . Spaces Dug . | . . . . . . . Terrain Destroyed 10 | . . . 2 . . 8 Melee . | . . . . . . . Projectile 2 | . . . 2 . . . AOE 8 | . . . . . . 8 Terrain Rammed . | . . . . . . . Walls Destroyed . | . . . . . . . Machines Disabled . | . . . . . . . Actions | -11 -10 -9 -8 -7 -7 -7 --------- Run | Scr Mat Mat Mat Fac DSF Gar Total 3200 | 58 193 1517 668 312 107 345 Wait 500 | . 13 245 123 94 . 25 Move 2212 | 46 153 988 469 215 68 273 Hop . | . . . . . . . Pick Up 86 | 6 6 50 12 1 8 3 Fast Attach 23 | 6 3 8 4 . 2 . Attach 35 | . . 16 4 2 4 9 Detach 2 | . . . 1 . 1 . Swap 25 | . 1 20 2 . . 2 Drop 81 | . 7 49 12 . 11 2 Fire 210 | . 10 141 41 . 5 13 Melee . | . . . . . . . Ram 10 | . . . . . . 10 Kick . | . . . . . . . Crush . | . . . . . . . Escape Stasis 16 | . . . . . 8 8 Rewire . | . . . . . . . Trap . | . . . . . . . Miscellaneous . | . . . . . . . Route ------- -11/Scrapyard -10/Materials -9/Materials (discovered 2 exits: *Mat x2) -8/Materials -7/Factory -7/DSF -7/Garrison (discovered 1 exit: [*Fac]) History --------- Turn | Location | Event 30 | -11/Scrapyard | Discovered new exit (range 16) 68 | -11/Scrapyard | Entered Materials 281 | -10/Materials | Discovered new exit (range 14) 310 | -10/Materials | Entered another Materials area 310 | -9/Materials | Evolved 2 slots: Propulsion x1, Utility x1 332 | -9/Materials | Build established: Mutant 604 | -9/Materials | Repaired Seismic Detector 1110 | -9/Materials | Search patrols dispatched 1506 | -9/Materials | Core integrity fell below 50% 1510 | -9/Materials | Search patrols dispatched 1754 | -9/Materials | Discovered new exit (range 12) 1910 | -9/Materials | Search patrols dispatched 2034 | -9/Materials | Discovered new exit (range 15) 2035 | -9/Materials | Lost 3 parts (1p1n1u) 2168 | -9/Materials | Entered another Materials area 2168 | -8/Materials | Evolved 2 slots: Propulsion x1, Weapon x1 2279 | -8/Materials | Repaired Med. Armor Plating 2551 | -8/Materials | Build established: Tank 2997 | -8/Materials | Discovered new exit (range 5) 3027 | -8/Materials | Entered Factory 3027 | -7/Factory | Evolved 2 slots: Utility x2 3334 | -7/Factory | Build established: Scavenger-Gunner 3471 | -7/Factory | Identified exit to DSF 3473 | -7/Factory | Entered DSF 3499 | -7/DSF | Additional patrols routed to DSF 3584 | -7/DSF | Discovered new exit (range 11) 3586 | -7/DSF | Lost 4 parts (1p2u1w) 3598 | -7/DSF | Entered Garrison 3722 | -7/Garrison | Triggered checkpoint 3752 | -7/Garrison | Garrison Relay disabled 3852 | -7/Garrison | Triggered checkpoint 3885 | -7/Garrison | Discovered new exit (range 12) 3899 | -7/Garrison | Attempted to access garrison exit controls, blocked by remote lockdown 3900 | -7/Garrison | Lost 4 parts (1p1u2w) 3950 | -7/Garrison | Triggered checkpoint 3967 | -7/Garrison | Core integrity fell below 50% 4000 | -7/Garrison | Lost 9 parts (4n3u2w) 4001 | -7/Garrison | Triggered checkpoint 4004 | -7/Garrison | Core integrity fell below 20% 4009 | -7/Garrison | Destroyed by Y-54 Guardian with Gatling Laser Last Messages --------------- 03919_ Penetrated by Slug. 03919_ Hpw. Shotgun destroyed. 03920_ Arm. Huge Wheel destroyed. 03925_ Kinecellerator destroyed. 03950_ Beams of light sweep through the air. An alarm sounds. 03954_ Slammed into S-27 Virus. 03954_ Tractor Beam destroyed. 03956_ Slammed into S-27 Virus. 03959_ Penetrated by Slug. 03959_ Arm. Huge Wheel destroyed. 03960_ Slammed into H-55 Commando. 03963_ Slammed into Y-54 Guardian. 03967_ Com. Matter Pod destroyed. 03967_ Slammed into Y-54 Guardian. 03969_ Arm. Huge Wheel destroyed. 03987_ S-27 Virus destroyed. 04000_ ALERT: Garrison interior compromised. 04001_ Beams of light sweep through the air. An alarm sounds. 04006_ Arm. Huge Wheel destroyed. 04006_ Imp. Targeting Computer destroyed. Map ----- +----------------------------------------------------+ | ????????????????????????????????????### #????????? | | ??????????????????????????????????????# #????????? | | ??????????????????????????????????????# #????????? | | ???????????????????????????????# ###### ######???? | | ???????????????????????????????# + #???? | | ???????????????????????????????# ########## ##???? | | ??????????????????????????????????????????# #????? | | ??????????????????????????????????????????# #????? | | ??????????????????????????????????????????# #????? | | ??????????????????????????????############# ###### | | ??????????????????????????????# | | ??????????????????????????????# % | | ??????????????????????????????# ######### ###### | | ??????????????????????????????# #???????# #????? | | ??????????????????????????????#^ #???????# #????? | | ??????????????????????????????# #???????# #????? | | ????????????????????????####### #???????# #????? | | ????????????????????????# ## #???????# #????? | | ?????????????############ YY## ##??????# #????? | | ?????????????? ####+### #????? | | ????????????? #????? | | ?????????????? s #????? | | ???????????????????# ## s## ###########????? | | ???????????????????# ## ## ###????????????? | | ???????????????????" #????????????? | | ???????????????????" @ #????????????? | | ???????????????????" #????????????? | | ???????????????????" #????????????? | | ???????????????????# ## ## ###????????????? | | ???????????????????# ## ## ##########?????? | | ???????????????????# ^ ! #?????? | | ???????????????????# [% =!#?????? | | ???????????????????# *% = ###### =#?????? | | ???????????????????# ## ## %###????# #?????? | | ???????????????????# ??# ## * ###### #?????? | | ???????????????????# ???###### " #?????? | | ?????????????????????????????# ######## #?????? | | ?????????????????????????????## #??????# #?????? | | ??????????????????????????????# #??????# #?????? | | ??????????????????????????????# #??????# #?????? | | ??????????????????????????????# ######## ####### | | ??????????????????????????????# ^ | | ??????????????????????????????# ^ | | ??????????????????????????????####### ############ | | ????????????????????????????????????# #??????????? | | ????????????????????????????????????# #??????????? | | ????????????????????????????????????# #??????##### | | ????????????????????????????????????# #??????# #"# | | ????????????????????????????????????# #??????# !"# | | ????????????????????????????????????# #??????# ! # | +----------------------------------------------------+ Best States ------------- Heat Dissipation 38 Energy Generation 14 Energy Capacity 280 Matter Stores 361 Matter Capacity 450 Sight Range 16 Terrain Scan Density 10 Additional Mass Support 6 Armor Coverage 225 Evasion (%) 55 Targeting Accuracy 6 Recoil Reduction 8 Kinecelleration 30 Item Schematics ----------------- Arm. Wheel | -9/Materials | Scanalyzed Katana | -9/Materials | Scanalyzed Robot Schematics ------------------ None Fabricated ------------ Nothing Alien Tech Used ----------------- None Achievements -------------- None Challenges ------------ None Game ------ Seed MasterMeleeJammer Manual? 0 Play Time 00:45:30 Cumulative 34.9 hours Start 2022.03.29 @ 12:31:18 End 2022.03.29 @ 13:26:31 Sessions 3 Manual Loads 0 Difficulty Rogue Special Mode None Game No. 28 Rogue 28 Adventurer 0 Explorer 0 Win Type - Total 1 Types 1/0/0/0/0/0/0/0/0 Lore% 46 Gallery% 44 Achievement% 43 Wizard Run 0 Options --------- ASCII 0 Keyboard 1 Movement Vi Keybinds 0 Fullscreen 2 Font 24/Proggy Map View 76x50 Tactical HUD 1 Map Filters NONE Filters NONE Steam 1 RUN: de060e74-a9d8-4e1d-b60a-0497a645184e